fUST/lending_fUST_20250608
["ID","MTS","AMOUNT","RATE_DAILY","PERIOD"]
[364976228,1749373841611,-440.0,0.0002,2]
[364976229,1749373841621,-489.86,0.0002,2]
[364976230,1749373841631,-753.64,0.0002,2]
[364976231,1749373841642,-440.0,0.0002,2]
[364976232,1749373841652,-1373.63,0.0002,2]
[364976233,1749373841662,-2215.93,0.0002,2]
[364976234,1749373841672,-2140.09,0.0002,2]
[364976235,1749373841682,-514.59,0.0002,2]
[364976236,1749373841692,-2021.55,0.0002,2]
[364976237,1749373841702,-644.76,0.0002,2]
[364976238,1749373841712,-440.0,0.0002,2]
[364976239,1749373841722,-1817.13,0.0002,2]
[364976240,1749373841731,-571.59,0.0002,2]
[364976241,1749373841742,-780.04,0.0002,2]
[364976242,1749373841752,-1080.26,0.0002,2]
[364976243,1749373841762,-440.0,0.0002,2]
[364976244,1749373841771,-440.0,0.0002,2]
[364976245,1749373841781,-1836.24,0.0002,2]
[364976246,1749373841791,-516.13,0.0002,2]
[364976247,1749373841800,-440.0,0.0002,2]
[364976248,1749373841810,-500.0,0.00020079,2]
[364976249,1749373841820,-324.502889,0.00020187,2]
[364976250,1749373841830,-184.967,0.00020205,2]
[364976251,1749373841840,-440.0,0.00020273,2]
[364976252,1749373841849,-440.0,0.00020273,2]
[364976253,1749373841859,-440.0,0.00020273,2]
[364976254,1749373841869,-205.90855456,0.00020273,2]
[364976255,1749373841879,-440.0,0.00020273,2]
[364976256,1749373841888,-625.58,0.00020273,2]
[364976257,1749373841898,-440.0,0.00020273,2]
[364976258,1749373841909,-440.0,0.00020273,2]
[364976259,1749373841919,-440.0,0.00020273,2]
[364976260,1749373841928,-440.0,0.00020273,2]
[364976261,1749373841939,-440.0,0.00020273,2]
[364976262,1749373841949,-749.42,0.00020273,2]
[364976263,1749373841959,-440.0,0.00020273,2]
[364976264,1749373841969,-440.0,0.00020273,2]
[364976265,1749373841978,-440.0,0.00020273,2]
[364976266,1749373841989,-440.0,0.00020273,2]
[364976267,1749373841998,-744.91,0.00020273,2]
[364976268,1749373842009,-440.0,0.00020273,2]
[364976269,1749373842019,-250.81,0.00020273,2]
[364976270,1749373842028,-440.0,0.00020273,2]
[364976271,1749373842038,-440.0,0.00020273,2]
[364976272,1749373842047,-440.0,0.00020273,2]
[364976273,1749373842057,-788.08,0.00020273,2]
[364976274,1749373842068,-628.16,0.00020273,2]
[364976275,1749373842077,-440.0,0.00020273,2]
[364976276,1749373842087,-489.86,0.00020273,2]
[364976277,1749373842097,-753.64,0.00020273,2]
[364976278,1749373842107,-440.0,0.00020273,2]
[364976279,1749373842117,-1373.63,0.00020273,2]
[364976280,1749373842127,-2215.93,0.00020273,2]
[364976281,1749373842136,-2140.09,0.00020273,2]
[364976282,1749373842146,-514.59,0.00020273,2]
[364976283,1749373842156,-2021.55,0.00020273,2]
[364976284,1749373842166,-644.76,0.00020273,2]
[364976285,1749373842175,-440.0,0.00020273,2]
[364976286,1749373842185,-1817.13,0.00020273,2]
[364976287,1749373842194,-571.59,0.00020273,2]
[364976288,1749373842204,-780.04,0.00020273,2]
[364976289,1749373842214,-440.0,0.00020273,2]
[364976290,1749373842223,-1080.26,0.00020273,2]
[364976291,1749373842233,-440.0,0.00020273,2]
[364976292,1749373842243,-1836.24,0.00020273,2]
[364976293,1749373842253,-516.13,0.00020273,2]
[364976294,1749373842263,-334.25753151,0.00020273,2]
[364976295,1749373842272,-389.74,0.000203,14]
[364976296,1749373842282,-1260.64,0.00020348,2]
[364976297,1749373842292,-440.0,0.00020547,2]
[364976298,1749373842302,-440.0,0.00020547,2]
[364976299,1749373842311,-500.0,0.00020547,2]
[364976300,1749373842320,-440.0,0.00020547,2]
[364976301,1749373842330,-625.58,0.00020547,2]
[364976302,1749373842340,-440.0,0.00020547,2]
[364976303,1749373842349,-440.0,0.00020547,2]
[364976304,1749373842358,-440.0,0.00020547,2]
[364976305,1749373842368,-440.0,0.00020547,2]
[364976306,1749373842379,-431.67,0.00020547,2]
[364976307,1749373842389,-749.42,0.00020547,2]
[364976308,1749373842399,-440.0,0.00020547,2]
[364976309,1749373842408,-440.0,0.00020547,2]
[364976310,1749373842418,-440.0,0.00020547,2]
[364976311,1749373842427,-440.0,0.00020547,2]
[364976312,1749373842437,-744.91,0.00020547,2]
[364976313,1749373842451,-440.0,0.00020547,2]
[364976314,1749373842461,-440.0,0.00020547,2]
[364976315,1749373842471,-440.0,0.00020547,2]
[364976316,1749373842480,-788.08,0.00020547,2]
[364976317,1749373842491,-628.16,0.00020547,2]
[364976319,1749373842501,-440.0,0.00020547,2]
[364976320,1749373842510,-489.86,0.00020547,2]
[364976323,1749373842522,-753.64,0.00020547,2]
[364976324,1749373842532,-440.0,0.00020547,2]
[364976326,1749373842542,-1373.63,0.00020547,2]
[364976327,1749373842552,-2215.93,0.00020547,2]
[364976328,1749373842562,-2140.09,0.00020547,2]
[364976329,1749373842573,-514.59,0.00020547,2]
[364976330,1749373842583,-2021.55,0.00020547,2]
[364976332,1749373842593,-644.76,0.00020547,2]
[364976333,1749373842603,-1817.13,0.00020547,2]
[364976334,1749373842613,-571.59,0.00020547,2]
[364976335,1749373842622,-780.04,0.00020547,2]
[364976336,1749373842632,-1080.26,0.00020547,2]
[364976337,1749373842643,-440.0,0.00020547,2]
[364976338,1749373842653,-1836.24,0.00020547,2]
[364976339,1749373842662,-516.13,0.00020547,2]
[364976340,1749373842672,-155.85745047,0.00020548,2]
[364976342,1749373842681,-963.0,0.00020581,2]
[364976343,1749373842691,-2223.0,0.00020581,2]
[364976344,1749373842700,-709.0,0.00020581,2]
[364976345,1749373842709,-405.0,0.00020581,2]
[364976346,1749373842720,-829.3,0.000206,2]
[364976347,1749373842730,-1746.55,0.000206,2]
[364976348,1749373842740,-501.14727306,0.00020711,2]
[364976349,1749373842749,-371.75285369,0.00020711,2]
[364976351,1749373842759,-440.0,0.00020821,2]
[364976352,1749373842768,-625.58,0.00020821,2]
[364976353,1749373842778,-440.0,0.00020821,2]
[364976354,1749373842787,-440.0,0.00020821,2]
[364976355,1749373842797,-440.0,0.00020821,2]
[364976356,1749373842806,-749.42,0.00020821,2]
[364976357,1749373842823,-553.06,0.00020821,2]
[364976358,1749373842833,-440.0,0.00020821,2]
[364976359,1749373842842,-440.0,0.00020821,2]
[364976360,1749373842851,-440.0,0.00020821,2]
[364976361,1749373842861,-744.91,0.00020821,2]
[364976362,1749373842870,-440.0,0.00020821,2]
[364976363,1749373842879,-440.0,0.00020821,2]
[364976365,1749373842889,-788.08,0.00020821,2]
[364976367,1749373842898,-628.16,0.00020821,2]
[364976369,1749373842907,-440.0,0.00020821,2]
[364976371,1749373842917,-489.86,0.00020821,2]
[364976373,1749373842926,-753.64,0.00020821,2]
[364976375,1749373842936,-440.0,0.00020821,2]
[364976377,1749373842946,-1373.63,0.00020821,2]
[364976379,1749373842955,-2215.93,0.00020821,2]
[364976381,1749373842964,-2140.09,0.00020821,2]
[364976383,1749373842974,-514.59,0.00020821,2]
[364976385,1749373842983,-2021.55,0.00020821,2]
[364976387,1749373842993,-644.76,0.00020821,2]
[364976389,1749373843002,-1817.13,0.00020821,2]
[364976391,1749373843012,-571.59,0.00020821,2]
[364976393,1749373843021,-780.04,0.00020821,2]
[364976395,1749373843030,-1080.26,0.00020821,2]
[364976397,1749373843040,-440.0,0.00020821,2]
[364976399,1749373843049,-1836.24,0.00020821,2]
[364976401,1749373843059,-516.13,0.00020821,2]
[364976403,1749373843068,-1100.0,0.00020883,2]
[364976405,1749373843078,-216.561,0.00020897,2]
[364976407,1749373843087,-500.0,0.00020931,2]
[364976409,1749373843096,-500.0,0.00020931,2]
[364976411,1749373843105,-153.75662207,0.00020931,2]
[364976413,1749373843115,-500.0,0.00020931,2]
[364976415,1749373843124,-500.94300179,0.00020935,2]
[364976417,1749373843133,-1000.0,0.00021,21]
[364976419,1749373843143,-500.0,0.00021015,2]
[364976421,1749373843152,-500.0,0.00021095,3]
[364976423,1749373843161,-440.0,0.00021095,2]
[364976425,1749373843170,-625.58,0.00021095,2]
[364976427,1749373843179,-440.0,0.00021095,2]
[364976429,1749373843189,-440.0,0.00021095,2]
[364976431,1749373843198,-440.0,0.00021095,2]
[364976433,1749373843208,-749.42,0.00021095,2]
[364976435,1749373843218,-440.0,0.00021095,2]
[364976437,1749373843229,-440.0,0.00021095,2]
[364976439,1749373843239,-440.0,0.00021095,2]
[364976442,1749373843250,-744.91,0.00021095,2]
[364976444,1749373843259,-440.0,0.00021095,2]
[364976446,1749373843268,-440.0,0.00021095,2]
[364976448,1749373843277,-788.08,0.00021095,2]
[364976450,1749373843286,-628.16,0.00021095,2]
[364976452,1749373843296,-440.0,0.00021095,2]
[364976454,1749373843305,-489.86,0.00021095,2]
[364976456,1749373843314,-753.64,0.00021095,2]
[364976475,1749373843443,-440.0,0.00021095,2]
[364976477,1749373843456,-1373.63,0.00021095,2]
[364976479,1749373843466,-2215.93,0.00021095,2]
[364976480,1749373843476,-2140.09,0.00021095,2]
[364976482,1749373843487,-2021.55,0.00021095,2]
[364976484,1749373843497,-514.59,0.00021095,2]
[364976486,1749373843507,-644.76,0.00021095,2]
[364976487,1749373843516,-1817.13,0.00021095,2]
[364976489,1749373843529,-571.59,0.00021095,2]
[364976491,1749373843540,-780.04,0.00021095,2]
[364976493,1749373843550,-1080.26,0.00021095,2]
[364976495,1749373843560,-440.0,0.00021095,2]
[364976497,1749373843571,-1836.24,0.00021095,2]
[364976499,1749373843581,-516.13,0.00021095,2]
[364976500,1749373843591,-182.94440693,0.00021206,2]
[364976502,1749373843601,-2521.28,0.00021317,2]
[364976504,1749373843611,-823.0,0.00021357,2]
[364976506,1749373843620,-823.0,0.00021359,2]
[364976507,1749373843630,-440.0,0.00021369,2]
[364976509,1749373843640,-625.58,0.00021369,2]
[364976511,1749373843650,-181.35486743,0.00021369,2]
[364976513,1749373843659,-440.0,0.00021369,2]
[364976515,1749373843669,-440.0,0.00021369,2]
[364976517,1749373843679,-749.42,0.00021369,2]
[364976518,1749373843689,-440.0,0.00021369,2]
[364976520,1749373843698,-440.0,0.00021369,2]
[364976522,1749373843709,-440.0,0.00021369,2]
[364976524,1749373843719,-744.91,0.00021369,2]
[364976525,1749373843728,-440.0,0.00021369,2]
[364976527,1749373843738,-440.0,0.00021369,2]
[364976529,1749373843748,-788.08,0.00021369,2]
[364976531,1749373843759,-628.16,0.00021369,2]
[364976533,1749373843767,-440.0,0.00021369,2]
[364976534,1749373843777,-489.86,0.00021369,2]
[364976536,1749373843786,-753.64,0.00021369,2]
[364976538,1749373843796,-440.0,0.00021369,2]
[364976540,1749373843806,-1373.63,0.00021369,2]
[364976541,1749373843815,-2215.93,0.00021369,2]
[364976543,1749373843825,-2140.09,0.00021369,2]
[364976545,1749373843835,-2021.55,0.00021369,2]
[364976547,1749373843845,-514.59,0.00021369,2]
[364976549,1749373843854,-644.76,0.00021369,2]
[364976550,1749373843864,-1817.13,0.00021369,2]
[364976552,1749373843874,-571.59,0.00021369,2]
[364976554,1749373843884,-780.04,0.00021369,2]
[364976556,1749373843895,-1080.26,0.00021369,2]
[364976558,1749373843904,-440.0,0.00021369,2]
[364976559,1749373843913,-1836.24,0.00021369,2]
[364976561,1749373843923,-516.13,0.00021369,2]
[364976563,1749373843933,-355.02028707,0.00021458,2]
[364976565,1749373843942,-1000.0,0.00021479,2]
[364976567,1749373843953,-1000.0,0.00021479,2]
[364976569,1749373843963,-1000.0,0.00021479,2]
[364976571,1749373843972,-178.68803488,0.00021543,2]
[364976573,1749373843981,-1000.0,0.00021563,2]
[364976574,1749373843991,-500.0,0.00021569,2]
[364976576,1749373844000,-500.0,0.00021569,2]
[364976578,1749373844009,-500.0,0.00021569,2]
[364976579,1749373844019,-500.0,0.00021569,2]
[364976581,1749373844029,-3000.0,0.000216,2]
[364976583,1749373844038,-3000.0,0.0002161,2]
[364976585,1749373844048,-3000.0,0.0002162,2]
[364976587,1749373844058,-3000.0,0.0002163,2]
[364976589,1749373844067,-3000.0,0.0002164,2]
[364976591,1749373844077,-500.0,0.00021643,2]
[364976593,1749373844086,-500.0,0.00021643,2]
[364976594,1749373844095,-500.0,0.00021643,4]
[364976596,1749373844105,-440.0,0.00021643,2]
[364976598,1749373844115,-625.58,0.00021643,2]
[364976600,1749373844124,-440.0,0.00021643,2]
[364976602,1749373844134,-440.0,0.00021643,2]
[364976604,1749373844144,-749.42,0.00021643,2]
[364976606,1749373844154,-325.81839602,0.00021643,2]
[364976608,1749373844164,-440.0,0.00021643,2]
[364976610,1749373844173,-440.0,0.00021643,2]
[364976612,1749373844183,-744.91,0.00021643,2]
[364976613,1749373844192,-440.0,0.00021643,2]
[364976615,1749373844202,-440.0,0.00021643,2]
[364976617,1749373844211,-788.08,0.00021643,2]
[364976619,1749373844221,-628.16,0.00021643,2]
[364976621,1749373844230,-244.13217665,0.00021643,2]
[364976623,1749373844240,-489.86,0.00021643,2]
[364976625,1749373844250,-753.64,0.00021643,2]
[364976626,1749373844259,-440.0,0.00021643,2]
[364976628,1749373844269,-1373.63,0.00021643,2]
[364976630,1749373844279,-2215.93,0.00021643,2]
[364976632,1749373844288,-2140.09,0.00021643,2]
[364976634,1749373844299,-2021.55,0.00021643,2]
[364976636,1749373844309,-514.59,0.00021643,2]
[364976638,1749373844319,-644.76,0.00021643,2]
[364976639,1749373844328,-1817.13,0.00021643,2]
[364976641,1749373844337,-571.59,0.00021643,2]
[364976643,1749373844347,-780.04,0.00021643,2]
[364976645,1749373844357,-1080.26,0.00021643,2]
[364976647,1749373844366,-157.39,0.00021643,2]
[364976649,1749373844375,-1836.24,0.00021643,2]
[364976651,1749373844385,-516.13,0.00021643,2]
[364976653,1749373844394,-3000.0,0.0002165,2]
[364976654,1749373844404,-3000.0,0.0002166,2]
[364976656,1749373844413,-3000.0,0.0002167,2]
[364976658,1749373844423,-3000.0,0.0002168,2]
[364976660,1749373844433,-3000.0,0.0002169,2]
[364976662,1749373844443,-800.0,0.00021694,2]
[364976664,1749373844455,-3000.0,0.000217,2]
[364976666,1749373844465,-3000.0,0.0002171,2]
[364976667,1749373844474,-800.0,0.00021717,2]
[364976669,1749373844483,-3000.0,0.0002172,2]
[364976671,1749373844495,-3391.778972,0.0002173,2]
[364976673,1749373844505,-5000.0,0.00021851,2]
[364976675,1749373844516,-500.0,0.00021851,2]
[364976677,1749373844526,-500.0,0.00021851,2]
[364976679,1749373844536,-500.0,0.00021851,2]
[364976681,1749373844545,-500.0,0.00021851,2]
[364976683,1749373844554,-500.0,0.00021851,2]
[364976684,1749373844563,-500.0,0.00021851,2]
[364976686,1749373844573,-500.0,0.00021851,2]
[364976688,1749373844582,-500.0,0.00021851,2]
[364976690,1749373844592,-500.0,0.00021851,2]
[364976692,1749373844601,-500.0,0.00021851,2]
[364976694,1749373844612,-207.4,0.00021851,2]
[364976696,1749373844623,-500.0,0.00021851,2]
[364976698,1749373844632,-531.42873487,0.00021851,2]
[364976699,1749373844642,-796.06,0.0002188,2]
[364976701,1749373844652,-1746.55,0.000219,2]
[364976703,1749373844661,-500.0,0.00021917,2]
[364976705,1749373844671,-440.0,0.00021917,2]
[364976707,1749373844680,-625.58,0.00021917,2]
[364976709,1749373844690,-500.0,0.00021917,2]
[364976711,1749373844700,-500.0,0.00021917,2]
[364976713,1749373844709,-500.0,0.00021917,2]
[364976715,1749373844718,-500.0,0.00021917,2]
[364976716,1749373844728,-500.0,0.00021917,2]
[364976718,1749373844738,-508.34594437,0.00021917,2]
[364976720,1749373844747,-440.0,0.00021917,2]
[364976722,1749373844757,-440.0,0.00021917,2]
[364976724,1749373844767,-749.42,0.00021917,2]
[364976726,1749373844776,-152.93,0.00021917,2]
[364976728,1749373844785,-440.0,0.00021917,2]
[364976730,1749373844795,-744.91,0.00021917,2]
[364976731,1749373844804,-440.0,0.00021917,2]
[364976733,1749373844814,-440.0,0.00021917,2]
[364976735,1749373844823,-788.08,0.00021917,2]
[364976737,1749373844833,-628.16,0.00021917,2]
[364976739,1749373844842,-489.86,0.00021917,2]
[364976741,1749373844852,-753.64,0.00021917,2]
[364976743,1749373844862,-440.0,0.00021917,2]
[364976745,1749373844873,-1373.63,0.00021917,2]
[364976747,1749373844883,-2215.93,0.00021917,2]
[364976749,1749373844892,-2140.09,0.00021917,2]
[364976750,1749373844901,-2021.55,0.00021917,2]
[364976752,1749373844911,-514.59,0.00021917,2]
[364976754,1749373844922,-644.76,0.00021917,2]
[364976756,1749373844931,-1817.13,0.00021917,2]
[364976758,1749373844941,-571.59,0.00021917,2]
[364976760,1749373844951,-780.04,0.00021917,2]
[364976762,1749373844960,-1080.26,0.00021917,2]
[364976764,1749373844970,-1836.24,0.00021917,2]
[364976766,1749373844979,-516.13,0.00021917,2]
[364976768,1749373844988,-153.0,0.00021918,2]
[364976769,1749373844998,-153.0,0.00021918,2]
[364976771,1749373845007,-153.0,0.00021918,2]
[364976773,1749373845017,-153.0,0.00021918,2]
[364976775,1749373845027,-153.0,0.00021918,2]
[364976777,1749373845036,-153.0,0.00021918,2]
[364976779,1749373845045,-153.0,0.00021918,2]
[364976781,1749373845055,-153.0,0.00021918,2]
[364976783,1749373845065,-153.0,0.00021918,2]
[364976784,1749373845074,-153.0,0.00021918,2]
[364976786,1749373845084,-153.0,0.00021918,2]
[364976788,1749373845093,-153.0,0.00021918,2]
[364976790,1749373845104,-153.0,0.00021918,2]
[364976792,1749373845114,-153.0,0.00021918,2]
[364976794,1749373845124,-153.0,0.00021918,2]
[364976796,1749373845134,-153.0,0.00021918,2]
[364976797,1749373845143,-153.0,0.00021918,2]
[364976799,1749373845152,-153.0,0.00021918,2]
[364976801,1749373845161,-153.0,0.00021918,2]
[364976803,1749373845170,-153.0,0.00021918,2]
[364976805,1749373845180,-153.0,0.00021918,2]
[364976807,1749373845189,-153.0,0.00021918,2]
[364976809,1749373845199,-153.0,0.00021918,2]
[364976811,1749373845208,-153.0,0.00021918,2]
[364976812,1749373845218,-153.0,0.00021918,2]
[364976814,1749373845228,-153.0,0.00021918,2]
[364976816,1749373845238,-153.0,0.00021918,2]
[364976818,1749373845248,-153.0,0.00021918,2]
[364976820,1749373845257,-153.0,0.00021918,2]
[364976822,1749373845266,-153.0,0.00021918,2]
[364976824,1749373845275,-153.0,0.00021918,2]
[364976826,1749373845284,-153.0,0.00021918,2]
[364976827,1749373845294,-153.0,0.00021918,2]
[364976829,1749373845303,-153.0,0.00021918,2]
[364976831,1749373845312,-153.0,0.00021918,2]
[364976833,1749373845322,-153.0,0.00021918,2]
[364976835,1749373845331,-153.0,0.00021918,2]
[364976837,1749373845342,-153.0,0.00021918,2]
[364976839,1749373845352,-153.0,0.00021918,2]
[364976841,1749373845361,-153.0,0.00021918,2]
[364976843,1749373845370,-153.0,0.00021918,2]
[364976844,1749373845380,-153.0,0.00021918,2]
[364976846,1749373845391,-153.0,0.00021918,2]
[364976848,1749373845400,-153.0,0.00021918,2]
[364976850,1749373845410,-153.0,0.00021918,2]
[364976852,1749373845419,-153.0,0.00021918,2]
[364976854,1749373845429,-153.0,0.00021918,2]
[364976856,1749373845440,-153.0,0.00021918,2]
[364976858,1749373845453,-153.0,0.00021918,2]
[364976860,1749373845463,-153.0,0.00021918,2]
[364976862,1749373845473,-153.0,0.00021918,2]
[364976863,1749373845483,-153.0,0.00021918,2]
[364976865,1749373845495,-153.0,0.00021918,2]
[364976867,1749373845506,-153.0,0.00021918,2]
[364976871,1749373845518,-153.0,0.00021918,2]
[364976874,1749373845529,-153.0,0.00021918,2]
[364976878,1749373845539,-153.0,0.00021918,2]
[364976881,1749373845548,-153.0,0.00021918,2]
[364976883,1749373845559,-153.0,0.00021918,2]
[364976885,1749373845569,-153.0,0.00021918,2]
[364976887,1749373845579,-153.0,0.00021918,2]
[364976889,1749373845589,-153.0,0.00021918,2]
[364976890,1749373845599,-153.0,0.00021918,2]
[364976891,1749373845609,-153.0,0.00021918,2]
[364976892,1749373845621,-153.0,0.00021918,2]
[364976893,1749373845631,-153.0,0.00021918,2]
[364976894,1749373845740,-153.0,0.00021918,2]
[364976895,1749373845751,-153.0,0.00021918,2]
[364976896,1749373845760,-153.0,0.00021918,2]
[364976897,1749373845770,-153.0,0.00021918,2]
[364976898,1749373845780,-153.0,0.00021918,2]
[364976899,1749373845790,-153.0,0.00021918,2]
[364976900,1749373845800,-153.0,0.00021918,2]
[364976901,1749373845810,-153.0,0.00021918,2]
[364976902,1749373845819,-153.0,0.00021918,2]
[364976903,1749373845829,-153.0,0.00021918,2]
[364976904,1749373845840,-153.0,0.00021918,2]
[364976905,1749373845850,-153.0,0.00021918,2]
[364976906,1749373845860,-153.0,0.00021918,2]
[364976907,1749373845870,-153.0,0.00021918,2]
[364976908,1749373845880,-153.0,0.00021918,2]
[364976910,1749373845890,-153.0,0.00021918,2]
[364976911,1749373845899,-153.0,0.00021918,2]
[364976913,1749373845910,-153.0,0.00021918,2]
[364976915,1749373845919,-153.0,0.00021918,2]
[364976917,1749373845929,-153.0,0.00021918,2]
[364976919,1749373845939,-153.0,0.00021918,2]
[364976921,1749373845949,-153.0,0.00021918,2]
[364976923,1749373845959,-153.0,0.00021918,2]
[364976925,1749373845971,-153.0,0.00021918,2]
[364976927,1749373845982,-153.0,0.00021918,2]
[364976929,1749373845992,-153.0,0.00021918,2]
[364976931,1749373846002,-153.0,0.00021918,2]
[364976933,1749373846012,-153.0,0.00021918,2]
[364976935,1749373846022,-153.0,0.00021918,2]
[364976937,1749373846032,-153.0,0.00021918,2]
[364976939,1749373846042,-153.0,0.00021918,2]
[364976941,1749373846051,-153.0,0.00021918,2]
[364976943,1749373846062,-153.0,0.00021918,2]
[364976945,1749373846071,-153.0,0.00021918,2]
[364976947,1749373846081,-153.0,0.00021918,2]
[364976950,1749373846091,-153.0,0.00021918,2]
[364976952,1749373846100,-153.0,0.00021918,2]
[364976954,1749373846110,-153.0,0.00021918,2]
[364976956,1749373846119,-153.0,0.00021918,2]
[364976958,1749373846129,-153.0,0.00021918,2]
[364976960,1749373846138,-153.0,0.00021918,2]
[364976962,1749373846147,-153.0,0.00021918,2]
[364976964,1749373846156,-153.0,0.00021918,2]
[364976966,1749373846166,-153.0,0.00021918,2]
[364976968,1749373846175,-153.0,0.00021918,2]
[364976970,1749373846184,-153.0,0.00021918,2]
[364976972,1749373846194,-153.0,0.00021918,2]
[364976974,1749373846203,-153.0,0.00021918,2]
[364976976,1749373846212,-153.0,0.00021918,2]
[364976978,1749373846222,-153.0,0.00021918,2]
[364976980,1749373846232,-153.0,0.00021918,2]
[364976982,1749373846242,-153.0,0.00021918,2]
[364976984,1749373846251,-153.0,0.00021918,2]
[364976986,1749373846261,-153.0,0.00021918,2]
[364976988,1749373846270,-153.0,0.00021918,2]
[364976990,1749373846280,-153.0,0.00021918,2]
[364976992,1749373846289,-153.0,0.00021918,2]
[364976994,1749373846298,-153.0,0.00021918,2]
[364976996,1749373846308,-153.0,0.00021918,2]
[364976998,1749373846318,-153.0,0.00021918,2]
[364977000,1749373846328,-153.0,0.00021918,2]
[364977002,1749373846337,-153.0,0.00021918,2]
[364977004,1749373846347,-153.0,0.00021918,2]
[364977006,1749373846356,-153.0,0.00021918,2]
[364977008,1749373846366,-153.0,0.00021918,2]
[364977010,1749373846376,-153.0,0.00021918,2]
[364977012,1749373846386,-153.0,0.00021918,2]
[364977014,1749373846396,-153.0,0.00021918,2]
[364977016,1749373846405,-153.0,0.00021918,2]
[364977018,1749373846415,-153.0,0.00021918,2]
[364977020,1749373846424,-153.0,0.00021918,2]
[364977023,1749373846434,-153.0,0.00021918,2]
[364977026,1749373846444,-153.0,0.00021918,2]
[364977028,1749373846456,-153.0,0.00021918,2]
[364977030,1749373846465,-153.0,0.00021918,2]
[364977032,1749373846474,-153.0,0.00021918,2]
[364977034,1749373846484,-153.0,0.00021918,2]
[364977036,1749373846494,-153.0,0.00021918,2]
[364977038,1749373846504,-153.0,0.00021918,2]
[364977040,1749373846514,-153.0,0.00021918,2]
[364977042,1749373846523,-153.0,0.00021918,2]
[364977044,1749373846533,-153.0,0.00021918,2]
[364977046,1749373846543,-153.0,0.00021918,2]
[364977048,1749373846552,-153.0,0.00021918,2]
[364977050,1749373846562,-153.0,0.00021918,2]
[364977052,1749373846572,-153.0,0.00021918,2]
[364977054,1749373846581,-153.0,0.00021918,2]
[364977056,1749373846591,-153.0,0.00021918,2]
[364977058,1749373846601,-153.0,0.00021918,2]
[364977060,1749373846610,-153.0,0.00021918,2]
[364977062,1749373846619,-500.0,0.00021973,2]
[364977064,1749373846628,-500.0,0.00021973,2]
[364977066,1749373846638,-504.14233961,0.00021973,2]
[364977068,1749373846650,-501.83712656,0.00021973,2]
[364977070,1749373846659,-500.0,0.00021973,2]
[364977072,1749373846669,-500.0,0.00021973,2]
[364977074,1749373846679,-500.0,0.00021973,2]
[364977076,1749373846689,-500.0,0.00021973,2]
[364977078,1749373846699,-479.68947817,0.00021973,2]
[364977080,1749373846708,-500.0,0.00021973,2]
[364977082,1749373846717,-500.0,0.00021973,2]